lending/lending_fUSD_20240120
["ID","MTS","AMOUNT","RATE_DAILY","PERIOD"]
[312257940,1705714255712,-500.0,0.00024931,2]
[312257941,1705714255721,-500.0,0.00024931,2]
[312257942,1705714255730,-500.0,0.00024931,2]
[312257943,1705714255740,-192.27,0.00024931,2]
[312257944,1705714255749,-500.0,0.00024931,2]
[312257945,1705714255758,-500.0,0.00024931,2]
[312257946,1705714255768,-500.0,0.00024931,2]
[312257947,1705714255777,-500.0,0.00024931,2]
[312257948,1705714255787,-197.3473781,0.00024931,2]
[312257949,1705714255796,-500.0,0.00024931,2]
[312257950,1705714255805,-500.0,0.00024931,2]
[312257951,1705714255815,-500.0,0.00024931,2]
[312257952,1705714255825,-500.0,0.00024931,2]
[312257953,1705714255834,-500.0,0.00024931,2]
[312257954,1705714255844,-750.07,0.00024931,2]
[312257955,1705714255854,-524.00703369,0.00024931,2]
[312257956,1705714255864,-500.0,0.00024931,2]
[312257957,1705714255873,-500.0,0.00024931,2]
[312257958,1705714255882,-500.0,0.00024931,2]
[312257959,1705714255892,-500.0,0.00024931,2]
[312257960,1705714255902,-620.31,0.00024931,2]
[312257961,1705714255911,-500.0,0.00024931,2]
[312257962,1705714255923,-500.0,0.00024931,2]
[312257963,1705714255932,-500.0,0.00024931,2]
[312257964,1705714255941,-500.0,0.00024931,2]
[312257965,1705714255951,-1165.22,0.00024931,2]
[312257966,1705714255961,-500.0,0.00024931,2]
[312257967,1705714255970,-500.0,0.00024931,2]
[312257968,1705714255980,-500.0,0.00024931,2]
[312257969,1705714255990,-500.0,0.00024931,2]
[312257970,1705714255999,-500.0,0.00024931,2]
[312257971,1705714256009,-500.0,0.00024931,2]
[312257972,1705714256019,-500.0,0.00024931,2]
[312257973,1705714256030,-151.0,0.00024936,7]
[312257974,1705714256039,-219.732568,0.00024936,7]
[312257975,1705714256049,-219.732568,0.00024936,7]
[312257976,1705714256060,-151.0,0.00024936,7]
[312257977,1705714256070,-188.724407,0.00024936,7]
[312257978,1705714256082,-188.724407,0.00024936,7]
[312257979,1705714256092,-309.177503,0.00024936,7]
[312257980,1705714256103,-309.177503,0.00024936,7]
[312257981,1705714256114,-8140.89413227,0.00024936,2]
[312257982,1705714256467,-504.49130464,0.00024931,2]
[312257983,1705714256477,-621.70453347,0.00024936,2]
[312257984,1705714256489,-1218.70938329,0.00024936,2]
[312257985,1705714256500,-1794.59329327,0.00024936,2]
[312257986,1705714256512,-2081.782,0.00024936,2]
[312257987,1705714257153,-277.21091135,0.00023916,2]
[312257988,1705714257165,-956.78908865,0.00023916,2]
[312257989,1705714257177,-80.93614753,0.000245,2]
[312257990,1705714257188,-403.30202413,0.000245,2]
[312257991,1705714257198,-129.52007399,0.00024557,2]
[312257992,1705714257210,-4016.98292151,0.00024557,2]
[312257993,1705714257230,-690.0,0.00024557,2]
[312257994,1705714257241,-163.4970045,0.00024557,2]
[312257995,1705714257250,-87.2081052,0.00024655,2]
[312257996,1705714257261,-11378.46219237,0.00024655,2]
[312257997,1705714257271,-593.06,0.00024657,2]
[312257998,1705714257280,-477.9681375,0.00024657,2]
[312257999,1705714257292,-46.12274594,0.00024657,2]
[312258000,1705714257302,-391.56760986,0.00024657,2]
[312258001,1705714257313,-500.0,0.00024657,2]
[312258002,1705714257323,-200.0,0.000247,9]
[312258003,1705714257335,-500.0,0.000248,9]
[312258004,1705714257344,-593.06,0.00024931,2]
[312258005,1705714257356,-534.7135303,0.00024931,2]
[312258006,1705714257366,-7575.7324291,0.00024936,2]
[312258007,1705714257377,-3107.0104328,0.00024936,2]
[312258008,1705714257388,-150.0,0.00024939,2]
[312258009,1705714257398,-150.0,0.00024958,2]
[312258010,1705714257408,-150.0,0.00024971,2]
[312258011,1705714257421,-506.8392267,0.00024975,2]
[312258012,1705714257430,-161.73,0.00024993,2]
[312258013,1705714257440,-1518.5,0.00024999,2]
[312258014,1705714257450,-1584.35924632,0.00025,2]
[312258015,1705714257459,-303.51189486,0.00025,2]
[312258016,1705714257468,-167.40543921,0.00025,2]
[312258017,1705714257478,-933.81243155,0.00025,2]
[312258018,1705714257488,-202.05640348,0.00025,2]
[312258019,1705714257499,-1000.0,0.00025,2]
[312258020,1705714257508,-278.68937404,0.00025,2]
[312258021,1705714257518,-3532.0,0.00025,2]
[312258022,1705714257527,-48384.0,0.00025,2]
[312258023,1705714257537,-3000.0,0.00025,2]
[312258024,1705714257546,-250.0,0.00025,2]
[312258025,1705714257555,-1745.324676,0.00025,2]
[312258026,1705714257565,-305.720085,0.00025,2]
[312258027,1705714257576,-2575.27105654,0.00025,2]
[312258028,1705714257585,-227.3198,0.00025,2]
[312258029,1705714257594,-2828.663061,0.00025,2]
[312258030,1705714257605,-1971.008451,0.00025,2]
[312258031,1705714257615,-2000.0,0.00025,2]
[312258032,1705714257624,-150.0,0.00025,2]
[312258033,1705714257632,-300.0,0.00025,2]
[312258034,1705714257641,-4010.28811189,0.00025,2]
[312258035,1705714257651,-155.67,0.00025024,2]
[312258036,1705714257660,-158.06,0.00025052,2]
[312258037,1705714257671,-267.95293893,0.00025105,2]
[312258038,1705714257680,-156.39,0.00025111,2]
[312258039,1705714257689,-558.46384651,0.00025113,2]
[312258040,1705714257746,-206.0,0.00025172,5]
[312258041,1705714257755,-1518.5,0.00025204,2]
[312258042,1705714257764,-1518.5,0.00025204,2]
[312258043,1705714257773,-1518.5,0.00025204,2]
[312258044,1705714257782,-645.529974,0.00025204,7]
[312258045,1705714257791,-645.529974,0.00025204,7]
[312258046,1705714257800,-151.0,0.00025205,7]
[312258047,1705714257809,-188.724407,0.00025205,7]
[312258048,1705714257818,-188.724407,0.00025205,7]
[312258049,1705714257827,-309.177503,0.00025205,7]
[312258050,1705714257836,-309.177503,0.00025205,7]
[312258051,1705714257845,-270938.0146551,0.00025205,3]
[312258246,1705715431849,-469.00831954,0.00019849,2]
[312258247,1705715431858,-206.0,0.0001985,2]
[312258248,1705715431867,-554.6,0.00020692,2]
[312258249,1705715431877,-181.0,0.00021359,2]
[312258250,1705715431886,-754.46579769,0.000219,2]
[312258251,1705715431895,-206.0,0.0002236,5]
[312258252,1705715431904,-250.0,0.00022503,2]
[312258253,1705715431914,-150.0,0.00022687,2]
[312258254,1705715431923,-12245.10361378,0.00022771,2]
[312258255,1705715431932,-1051.98,0.00022772,2]
[312258256,1705715431941,-159.46,0.00022913,2]
[312258257,1705715431951,-554.6,0.00022956,2]
[312258258,1705715431960,-367.62,0.00022956,2]
[312258259,1705715431969,-150.0,0.00023,2]
[312258260,1705715431978,-155.32394477,0.00023005,2]
[312258261,1705715431988,-23900.0,0.00023006,2]
[312258262,1705715431997,-151.1974345,0.00023023,2]
[312258263,1705715432006,-500.0,0.00023123,2]
[312258264,1705715432015,-1138.77,0.00023123,2]
[312258265,1705715432024,-449.4,0.00023123,2]
[312258266,1705715432033,-150.0,0.00023178,2]
[312258267,1705715432042,-200.0,0.00023239,2]
[312258268,1705715432051,-151.19743443,0.00023401,2]
[312258269,1705715432060,-159.87,0.00023425,2]
[312258270,1705715432070,-161.03,0.00023568,2]
[312258271,1705715432079,-182.99,0.00023594,2]
[312258272,1705715432088,-2000.0,0.00023629,2]
[312258273,1705715432098,-250.0,0.000237,2]
[312258274,1705715432107,-157.8,0.00023723,2]
[312258275,1705715432116,-1000.0,0.00023751,2]
[312258276,1705715432125,-151.19743443,0.00023778,2]
[312258277,1705715432134,-1372.5422337,0.00023797,2]
[312258278,1705715432144,-1255.7842,0.00023798,2]
[312258279,1705715432153,-513.1631,0.00023798,2]
[312258280,1705715432162,-1418.604,0.00023971,2]
[312258281,1705715432172,-946.0,0.00023971,2]
[312258282,1705715432182,-466.824,0.00023971,2]
[312258283,1705715432191,-6932.65577768,0.00024032,2]
[312258303,1705715437888,-364.62216952,0.00024032,2]
[312258304,1705715438057,-17408.32923057,0.00024032,2]
[312258625,1705715441496,-6119.44966833,0.00024032,2]
[312258627,1705715441508,-983.22164338,0.00024032,2]
[312258628,1705715441562,-1278.03530082,0.00024032,2]
[312258629,1705715441574,-7300.3848,0.00024032,2]
[312258630,1705715441584,-1553.99758633,0.00024032,2]
[312258631,1705715441595,-312.52609998,0.00024032,2]
[312258637,1705715442158,-3442.24764168,0.00024032,2]
[312258638,1705715442216,-68614.11176469,0.00024032,2]
[312258640,1705715442273,-6133.0700043,0.00024032,2]
[312258649,1705715442919,-465.15169898,0.00024032,2]
[312258650,1705715442955,-277.19799998,0.00024032,2]
[312258651,1705715442966,-1439.32634084,0.00024032,2]
[312258653,1705715443200,-2306.17497154,0.00024032,2]
[312258654,1705715443212,-1424.3489894,0.00024032,2]
[312258671,1705715446095,-512.67,0.00024032,2]
[312258672,1705715446139,-5258.76787947,0.00024032,2]
[312258689,1705715523496,234.47102812,0.00022,30]
[312258724,1705716141602,-526.89,0.00020725,2]
[312258725,1705716141624,-251.28945987,0.000219,2]
[312258726,1705716141645,-1250.0,0.00022,3]
[312258871,1705716541753,500.54,0.00020388,2]
[312258876,1705716576716,268.96533949,0.00022,2]
[312258877,1705716577810,2736.91576251,0.00022,2]
[312258879,1705716581940,243.83179684,0.00022,2]
[312258880,1705716583635,205.47210305,0.00022,2]
[312258891,1705716593759,306.61498062,0.00022,2]
[312258893,1705716597828,4050.13581664,0.00022,2]
[312258894,1705716599463,1899.56827688,0.00022,2]
[312258897,1705716612254,11576.6118677,0.00022,2]
[312258898,1705716615441,1894.3324045,0.00022,2]
[312258899,1705716617605,220.96329974,0.00022,2]
[312258907,1705716630457,155.24114244,0.00022,2]
[312258919,1705716631956,-155.40516054,0.0002223,2]
[312258922,1705716631966,-192.05,0.00022274,2]
[312258925,1705716631975,-204.49508431,0.00022291,2]
[312258929,1705716632017,-355.68004321,0.00022291,2]
[312258930,1705716632029,-439.82487248,0.00022291,2]
[312258931,1705716632038,-138.2452138,0.00022294,2]
[312258932,1705716632050,-111.7547862,0.00022294,2]
[312258933,1705716632060,-1133.93,0.00022294,2]
[312258934,1705716632069,-315.76,0.00022316,2]
[312258935,1705716632081,-232.13,0.0002233,2]
[312258936,1705716632092,-200.0,0.00022336,2]
[312258937,1705716632102,-150.0,0.00022342,2]
[312258938,1705716632111,-56.4252138,0.00022343,2]
[312258939,1705716632123,-300.0,0.00022343,2]
[312258940,1705716632135,-14623.70179347,0.00022343,2]
[312258941,1705716632148,-903.50597654,0.00022343,2]
[312258942,1705716632164,-1026.8579553,0.00022343,2]
[312258943,1705716632196,-518.79841674,0.00022343,2]
[312258944,1705716632208,-483.49932256,0.00022343,2]
[312258945,1705716632233,-1426.73096217,0.00022343,2]
[312258946,1705716632245,-11805.04035942,0.00022343,2]
[312258947,1705716632254,-23900.0,0.00022374,2]
[312258948,1705716632264,-621.11,0.00022398,2]
[312258949,1705716632273,-151.73,0.00022398,2]
[312258950,1705716632283,-150.0,0.00022406,2]
[312258951,1705716632291,-169.99,0.0002248,2]
[312258952,1705716632301,-155.40516054,0.00022545,2]
[312258953,1705716632310,-158.77,0.00022595,2]
[312258954,1705716632320,-500.54,0.00022652,2]
[312258956,1705716632329,-736.81,0.00022734,2]
[312258957,1705716632339,-6333.47965432,0.00022832,2]
[312258958,1705716632350,-542.18999,0.00022832,2]
[312258959,1705716632371,-546.54532813,0.00022832,2]
[312258961,1705716632382,-743.14590576,0.00022832,2]
[312258963,1705716632390,-7.03571108,0.0002286,2]
[312258965,1705716632401,-148.36944946,0.0002286,2]
[312258967,1705716632410,-169.99,0.00023066,2]
[312258969,1705716632419,-3191.74123019,0.00023069,2]
[312258971,1705716632427,-151.73,0.0002307,2]
[312258973,1705716632437,-500.0,0.00023123,2]
[312258974,1705716632446,-162.97,0.00023146,2]
[312258976,1705716632454,-155.40516054,0.00023175,2]
[312258978,1705716632463,-150.0,0.000232,2]
[312258980,1705716632472,-292.48734074,0.00023342,2]
[312258982,1705716632481,-160.82,0.00023475,2]
[312258983,1705716632490,-155.40516054,0.0002349,2]
[312258985,1705716632498,-2813.47996339,0.000235,2]
[312258987,1705716632510,-4448.13567168,0.000235,2]
[312258989,1705716632521,-1038.37070633,0.000235,2]
[312258990,1705716632532,-823.16607539,0.000235,2]
[312258991,1705716632543,-3747.09115664,0.000235,2]
[312258992,1705716632555,-456.31690773,0.000235,2]
[312258993,1705716632566,-4482.96214092,0.000235,2]
[312258994,1705716632578,-307.51494231,0.000235,2]
[312258995,1705716632597,-2618.90434994,0.000235,2]
[312258996,1705716633448,454.70649829,0.00022,2]
[312258997,1705716633589,286.73207591,0.00022,2]
[312259032,1705716638040,-2252.29581526,0.000235,2]
[312259033,1705716638213,-19817.88482359,0.000235,2]
[312259034,1705716638273,-926.63689892,0.000235,2]
[312259035,1705716638331,-44311.0950479,0.000235,2]
[312259036,1705716638341,-3356.0,0.000236,2]
[312259037,1705716638350,-43564.0,0.000236,2]
[312259038,1705716638360,-169.99,0.00023652,2]
[312259039,1705716638369,-250.0,0.000237,2]
[312259040,1705716638379,-151.73,0.00023742,2]
[312259041,1705716638388,-150.52,0.0002378,2]
[312259042,1705716638398,-300.0,0.0002378,2]
[312259043,1705716638408,-816.94,0.0002378,2]
[312259044,1705716638417,-150.72,0.0002378,2]
[312259045,1705716638426,-150.0,0.0002378,2]
[312259046,1705716638436,-418.5,0.0002378,2]
[312259047,1705716638445,-291.92,0.0002378,2]
[312259049,1705716638454,-294.39,0.0002378,2]
[312259051,1705716638463,-418.5,0.0002378,2]
[312259053,1705716638472,-150.0,0.0002378,2]
[312259055,1705716638482,-150.0,0.0002378,2]
[312259057,1705716638491,-294.39,0.0002378,2]
[312259059,1705716638500,-291.92,0.0002378,2]
[312259061,1705716638509,-418.5,0.0002378,2]
[312259063,1705716638518,-150.0,0.0002378,2]
[312259065,1705716638527,-150.0,0.0002378,2]
[312259067,1705716638535,-291.92,0.0002378,2]
[312259069,1705716638544,-294.39,0.0002378,2]
[312259071,1705716638554,-155.40516054,0.00023805,2]
[312259073,1705716638563,-823.93,0.00023814,2]
[312259075,1705716638573,-151.19,0.00023814,2]
[312259078,1705716638582,-299.02,0.00023814,2]
[312259081,1705716638591,-152.31,0.00023814,2]
[312259084,1705716638601,-296.42,0.00023814,2]
[312259086,1705716638611,-152.14,0.00023814,2]
[312259089,1705716638621,-150.0,0.00023814,2]
[312259092,1705716638630,-836.64,0.00023814,2]
[312259094,1705716638640,-150.0,0.00023814,2]
[312259096,1705716638649,-728.97,0.00023927,2]
[312259098,1705716638658,-176.36,0.00023931,2]
[312259100,1705716638667,-192.23861667,0.00023931,2]
[312259102,1705716638677,-88834.95117489,0.00023932,2]
[312259105,1705716638694,-3627.95124371,0.00023932,2]
[312259285,1705716640544,-321.28310258,0.00023932,2]
[312259287,1705716640556,-2719.65690231,0.00023932,2]
[312259293,1705716640602,-15685.42707926,0.00023932,2]
[312259327,1705716640913,-26064.67539394,0.00023932,2]
[312259330,1705716640925,-9245.30500987,0.00023932,2]
[312259332,1705716640940,-13601.27491231,0.00023932,2]
[312259334,1705716640951,-541.05532265,0.00023932,2]
[312259337,1705716640963,-35016.58105848,0.00023932,2]
[312259339,1705716640972,-3008.6825,0.00023932,2]
[312259341,1705716640981,-500.0,0.00023932,2]
[312259343,1705716640990,-1000.0,0.00023932,2]
[312259345,1705716640999,-1133.93,0.00023937,2]
[312259347,1705716641008,-1300.0,0.00024,3]
[312259349,1705716641018,-1217.08,0.00024,2]
[312259351,1705716641027,-197.54618209,0.0002403,2]
[312259353,1705716641036,-198.24113004,0.0002403,2]
[312259355,1705716641045,-1050.74142845,0.0002403,2]
[312259357,1705716641054,-314.39121002,0.0002403,2]
[312259358,1705716641063,-238.30909861,0.0002403,2]
[312259359,1705716641072,-6259.38922149,0.00024031,2]
[312259360,1705716641082,-5462.84369686,0.00024031,2]
[312259361,1705716641095,-205.15144742,0.00024031,2]
[312259363,1705716641104,-1773.10768545,0.00024031,2]
[312259365,1705716641113,-37786.98377726,0.00024032,2]
[312259367,1705716641124,-1479.47761296,0.00024032,2]
[312259368,1705716641136,-312.14320097,0.00024032,2]
[312259369,1705716641148,-28295.10584132,0.00024032,2]
[312259370,1705716641157,-611.88596089,0.00024032,2]
[312259371,1705716641166,-160.82,0.00024038,2]
[312259372,1705716641175,-155.40516054,0.00024119,2]
[312259373,1705716641184,-157.8,0.00024129,2]
[312259374,1705716641194,-250.0,0.000242,2]
[312259375,1705716641203,-231.62306704,0.00024308,2]
[312259376,1705716641214,-188.20080065,0.00024314,2]
[312259377,1705716641224,-184.012,0.00024348,3]
[312259378,1705716641233,-159.46,0.0002435,2]
[312259379,1705716641242,-151.73,0.00024414,2]
[312259380,1705716641252,-155.40516054,0.00024434,2]
[312259381,1705716641261,-187.78363898,0.00024479,2]
[312259382,1705716641273,-175.24,0.000245,2]
[312259383,1705716641282,-157.8,0.00024536,2]
[312259384,1705716641291,-500.0,0.00024537,2]
[312259385,1705716641300,-263.8772,0.00024557,2]
[312259386,1705716641309,-5014.33157824,0.00024557,2]
[312259387,1705716641325,-320.7376266,0.00024557,2]
[312259388,1705716641337,-5526.78802572,0.00024557,2]
[312259389,1705716641348,-400.11556097,0.00024557,2]
[312259390,1705716641367,-463.53298113,0.00024557,2]
[312259391,1705716641378,-616.53870776,0.00024557,2]
[312259392,1705716641389,-704.47036335,0.00024557,2]
[312259393,1705716641400,-613.65910992,0.00024557,2]
[312259394,1705716641409,-1612.60638186,0.00024557,2]
[312259395,1705716641477,-507.76928861,0.00024557,2]
[312259396,1705716641489,-413.00489576,0.00024557,2]
[312259397,1705716641502,-21357.63,0.00024557,2]
[312259398,1705716641514,-524.59241512,0.00024557,2]
[312259427,1705716643015,-3438.87650402,0.00024557,2]
[312259429,1705716643027,-645.90911112,0.00024557,2]
[312259441,1705716643148,-10636.51504982,0.00024557,2]
[312259443,1705716643158,-374.4564,0.00024557,2]
[312259445,1705716643168,-152.94518978,0.00024557,2]
[312259446,1705716643177,-183.79340836,0.00024557,2]
[312259448,1705716643187,-210.0,0.00024576,2]
[312259450,1705716643196,-449.85,0.00024587,2]
[312259451,1705716643206,-160.82,0.00024602,2]
[312259453,1705716643215,-291.92,0.00024602,2]
[312259455,1705716643225,-150.0,0.00024602,2]
[312259457,1705716643234,-294.39,0.00024602,2]
[312259458,1705716643244,-291.92,0.00024602,2]
[312259460,1705716643254,-417.41,0.00024602,2]
[312259461,1705716643263,-293.55,0.00024602,2]
[312259462,1705716643273,-180.0,0.00024608,2]
[312259463,1705716643282,-170.31791833,0.00024647,2]
[312259464,1705716643292,-606.22482086,0.00024655,4]
[312259466,1705716643301,-205.44869262,0.00024655,2]
[312259467,1705716643311,-434.33261974,0.00024656,2]
[312259469,1705716643320,-240.90670029,0.00024656,2]
[312259471,1705716643330,-542.86632532,0.00024656,2]
[312259472,1705716643339,-519.172914,0.00024657,7]
[312259473,1705716643348,-519.172914,0.00024657,7]
[312259474,1705716643357,-225.138078,0.00024657,7]
[312259475,1705716643367,-225.138078,0.00024657,7]
[312259476,1705716643378,-151.0,0.00024657,7]
[312259477,1705716643387,-51.12401079,0.00024657,7]
[312259478,1705716643401,-99.87598921,0.00024657,7]
[312259479,1705716643410,-177.96568,0.00024657,7]
[312259480,1705716643419,-177.96568,0.00024657,7]
[312259481,1705716643429,-177.96568,0.00024657,7]
[312259482,1705716643438,-177.96568,0.00024657,7]
[312259483,1705716643447,-294.840215,0.00024657,7]
[312259484,1705716643456,-151.0,0.00024657,7]
[312259485,1705716643465,-151.0,0.00024657,7]
[312259486,1705716643474,-151.0,0.00024657,7]
[312259488,1705716643483,-151.0,0.00024657,7]
[312259489,1705716643492,-500.0,0.00024657,2]
[312259490,1705716643502,-502.45969427,0.00024657,2]
[312259491,1705716643511,-501.16586651,0.00024657,2]
[312259492,1705716643521,-500.0,0.00024657,2]
[312259493,1705716643531,-500.70758562,0.00024657,2]
[312259494,1705716643540,-501.51832072,0.00024657,2]
[312259495,1705716643550,-502.26721276,0.00024657,2]
[312259496,1705716643560,-503.09531784,0.00024657,2]
[312259497,1705716643569,-500.97531808,0.00024657,2]
[312259498,1705716643579,-500.0,0.00024657,2]
[312259499,1705716643588,-500.0,0.00024657,2]
[312259500,1705716643598,-555.56971722,0.00024657,2]
[312259501,1705716643607,-500.0,0.00024657,2]
[312259502,1705716643616,-500.0,0.00024657,2]
[312259503,1705716643626,-511.60779747,0.00024657,2]
[312259504,1705716643635,-513.11993891,0.00024657,2]
[312259505,1705716643644,-500.0,0.00024657,2]
[312259506,1705716643654,-500.0,0.00024657,2]
[312259507,1705716643663,-500.0,0.00024657,2]
[312259508,1705716643672,-500.0,0.00024657,2]
[312259509,1705716643681,-500.0,0.00024657,2]
[312259510,1705716643691,-500.0,0.00024657,2]
[312259511,1705716643700,-506.06732816,0.00024657,2]
[312259512,1705716643710,-535.76293038,0.00024657,2]
[312259513,1705716643720,-507.3171577,0.00024657,2]
[312259514,1705716643729,-500.0,0.00024657,2]
[312259515,1705716643739,-500.0,0.00024657,2]
[312259516,1705716643749,-500.0,0.00024657,2]
[312259517,1705716643758,-500.0,0.00024657,2]
[312259518,1705716643767,-500.0,0.00024657,2]
[312259519,1705716643777,-500.0,0.00024657,2]
[312259520,1705716643786,-579.05805481,0.00024657,2]
[312259521,1705716643796,-264.98415169,0.00024657,2]
[312259522,1705716643806,-500.0,0.00024657,2]
[312259523,1705716643815,-516.82937132,0.00024657,2]
[312259524,1705716643825,-500.0,0.00024657,2]
[312259525,1705716643834,-289.52453173,0.00024657,2]
[312259526,1705716643844,-510.99542668,0.00024657,2]
[312259527,1705716643853,-179.10125774,0.00024657,2]
[312259528,1705716643862,-507.15059014,0.00024657,2]
[312259529,1705716643871,-219.41577239,0.00024657,2]
[312259530,1705716643880,-523.8359191,0.00024657,2]
[312259531,1705716643890,-500.0,0.00024657,2]
[312259532,1705716643899,-279.46468961,0.00024657,2]
[312259533,1705716643944,-220.53531039,0.00024657,2]
[312259534,1705716643953,-644.87345257,0.00024657,2]
[312259535,1705716643965,-500.0,0.00024657,2]
[312259536,1705716643974,-500.0,0.00024657,2]
[312259537,1705716643982,-500.0,0.00024657,2]
[312259538,1705716643991,-427.33974371,0.00024657,2]
[312259539,1705716644003,-72.66025629,0.00024657,2]
[312259540,1705716644013,-500.0,0.00024657,2]
[312259541,1705716644021,-215.72413672,0.00024657,2]
[312259542,1705716644033,-284.27586328,0.00024657,2]
[312259543,1705716644042,-500.0,0.00024657,2]
[312259544,1705716644050,-500.0,0.00024657,2]
[312259545,1705716644059,-165.2708481,0.00024657,2]
[312259546,1705716644071,-334.7291519,0.00024657,2]
[312259547,1705716644081,-18.00936619,0.00024657,2]
[312259548,1705716644169,-346.25239707,0.00024657,2]
[312259549,1705716644179,-500.0,0.00024657,2]
[312259550,1705716644188,-591.19124063,0.00024657,2]
[312259551,1705716644197,-500.0,0.00024657,2]
[312259552,1705716644206,-500.0,0.00024657,2]
[312259553,1705716644217,-500.0,0.00024657,2]
[312259554,1705716644226,-504.5470893,0.00024657,2]
[312259555,1705716644235,-500.0,0.00024657,2]
[312259556,1705716644244,-500.0,0.00024657,2]
[312259557,1705716644254,-522.45720455,0.00024657,2]
[312259558,1705716644263,-500.0,0.00024657,2]
[312259559,1705716644273,-503.56153524,0.00024657,2]
[312259560,1705716644282,-500.0,0.00024657,2]
[312259561,1705716644291,-500.0,0.00024657,2]
[312259562,1705716644301,-529.81012326,0.00024657,2]
[312259563,1705716644310,-500.0,0.00024657,2]
[312259564,1705716644319,-516.46977491,0.00024657,2]
[312259565,1705716644328,-500.0,0.00024657,2]
[312259566,1705716644338,-511.00266708,0.00024657,2]
[312259567,1705716644347,-500.0,0.00024657,2]
[312259568,1705716644355,-497.75677069,0.00024657,2]
[312259569,1705716644426,-2.24322931,0.00024657,2]
[312259570,1705716644436,-257.09427692,0.00024657,2]
[312259571,1705716644448,-242.90572308,0.00024657,2]
[312259572,1705716644457,-453.15413163,0.00024657,2]
[312259573,1705716644469,-46.84586837,0.00024657,2]
[312259574,1705716644478,-500.0,0.00024657,2]
[312259575,1705716644486,-580.1873646,0.00024657,2]
[312259576,1705716644495,-517.74944332,0.00024657,2]
[312259577,1705716644505,-500.0,0.00024657,2]
[312259578,1705716644514,-243.62670463,0.00024657,2]
[312259579,1705716644588,-256.37329537,0.00024657,2]
[312259580,1705716644597,-36.96627888,0.00024657,2]
[312259581,1705716644609,-136.16092383,0.00024657,2]
[312259582,1705716644618,-500.0,0.00024657,2]
[312259583,1705716644627,-500.0,0.00024657,2]
[312259584,1705716644636,-500.0,0.00024657,2]
[312259585,1705716644646,-500.0,0.00024657,2]
[312259586,1705716644655,-500.0,0.00024657,2]
[312259587,1705716644664,-500.0,0.00024657,2]
[312259588,1705716644673,-505.22537397,0.00024657,2]
[312259589,1705716644682,-388.90328461,0.00024657,2]
[312259590,1705716644692,-507.88071784,0.00024657,2]
[312259591,1705716644701,-500.0,0.00024657,2]
[312259592,1705716644711,-500.0,0.00024657,2]
[312259593,1705716644720,-260.7548596,0.00024657,2]
[312259594,1705716644730,-764.93,0.00024657,2]
[312259595,1705716644739,-500.0,0.00024657,2]
[312259596,1705716644748,-500.0,0.00024657,2]
[312259597,1705716644757,-500.0,0.00024657,2]
[312259598,1705716644766,-500.0,0.00024657,2]
[312259599,1705716644775,-500.0,0.00024657,2]
[312259600,1705716644785,-500.0,0.00024657,2]
[312259601,1705716644795,-123.94484015,0.00024657,2]
[312259602,1705716644809,-376.05515985,0.00024657,2]
[312259603,1705716644818,-500.0,0.00024657,2]
[312259604,1705716644828,-500.0,0.00024657,2]
[312259605,1705716644837,-506.53295216,0.00024657,2]
[312259606,1705716644847,-500.0,0.00024657,2]
[312259607,1705716644856,-500.0,0.00024657,2]
[312259608,1705716644866,-500.0,0.00024657,2]
[312259609,1705716644875,-500.0,0.00024657,2]
[312259610,1705716644884,-500.0,0.00024657,2]
[312259611,1705716644893,-295.06646618,0.00024657,2]